fUSD/lending_fUSD_20260319
["ID","MTS","AMOUNT","RATE_DAILY","PERIOD"]
[408592810,1773905501969,-852.5129933,0.00033972,2]
[408592811,1773905514930,265.99,0.00016,120]
[408592813,1773905864516,170.56,7.089e-05,2]
[408592814,1773905864708,170.56,7.975e-05,2]
[408592815,1773905864914,170.56,8.861e-05,2]
[408592816,1773905917201,10000.01,8.861e-05,2]
[408592817,1773905917225,641.91,8.861e-05,2]
[408592825,1773906332759,2000.0,8.861e-05,2]
[408592826,1773906357855,-742.2918,9.698e-05,2]
[408592836,1773906631776,-170.56,9.748e-05,2]
[408592838,1773906631789,-250.0,9.748e-05,2]
[408592839,1773906631801,-185.21306351,9.748e-05,2]
[408592841,1773906631813,-71.49693649,9.748e-05,2]
[408592843,1773906631832,-158.50306351,9.748e-05,2]
[408592845,1773906631845,-250.0,9.772e-05,2]
[408592847,1773906631861,-500.0,9.899e-05,2]
[408592849,1773906631873,-1124.81793075,9.969e-05,2]
[408592850,1773906631887,-875.18206925,9.969e-05,2]
[408592852,1773906631897,-1200.0,9.997e-05,2]
[408592854,1773906631908,-300.0,9.998e-05,2]
[408592855,1773906631918,-300.0,9.998e-05,2]
[408592857,1773906631930,-150.0,9.999e-05,2]
[408592859,1773906631942,-300.0,9.999e-05,2]
[408592860,1773906631953,-1200.0,9.999e-05,2]
[408592862,1773906631964,-77927.40917088,0.0001,2]
[408592863,1773906631976,-185.2130635,0.00010015,2]
[408592864,1773906631987,-10556.18,0.00010115,2]
[408592865,1773906631998,-170.56,0.00010634,2]
[408592866,1773906632010,-250.0,0.00010722,2]
[408592867,1773906632021,-2665.0751285,0.00010722,2]
[408592868,1773906632032,-5000.0,0.00010722,2]
[408592869,1773906632043,-200.0,0.00010816,2]
[408592870,1773906632055,-293.0,0.00010832,2]
[408592871,1773906632065,-999.99,0.00010888,2]
[408592872,1773906632077,-150.99,0.00010888,2]
[408592873,1773906632088,-166.66,0.00010959,2]
[408592874,1773906632100,-7836.06,0.00010959,2]
[408592875,1773906632111,-1680.0,0.00010997,2]
[408592877,1773906632122,-420.0,0.00010998,2]
[408592879,1773906632132,-255.0,0.00010999,2]
[408592881,1773906632143,-420.0,0.00010999,2]
[408592882,1773906632154,-166.66,0.00011068,2]
[408592883,1773906632165,-2000.0,0.00011077,2]
[408592884,1773906632175,-342.78,0.00011124,2]
[408592885,1773906632185,-9999.99,0.00011124,2]
[408592886,1773906632195,-350.86,0.00011124,2]
[408592887,1773906632206,-299.99,0.00011124,2]
[408592888,1773906632216,-9999.99,0.00011124,2]
[408592889,1773906632228,-9999.99,0.00011124,2]
[408592890,1773906632239,-4999.99,0.00011124,2]
[408592891,1773906632251,-9999.99,0.00011124,2]
[408592892,1773906632261,-7162.23,0.00011124,2]
[408592893,1773906632273,-150.99,0.00011124,2]
[408592894,1773906632284,-9999.99,0.00011124,2]
[408592895,1773906632294,-352.8,0.00011124,2]
[408592896,1773906632306,-3303.36,0.00011135,2]
[408592897,1773906632317,-166.66,0.00011178,2]
[408592898,1773906632328,-500.0,0.00011286,2]
[408592899,1773906632339,-166.66,0.00011288,2]
[408592900,1773906632350,-233.0,0.00011294,2]
[408592901,1773906632361,-500.0,0.0001135,2]
[408592902,1773906632372,-500.0,0.0001135,2]
[408592903,1773906632383,-500.0,0.00011355,2]
[408592904,1773906632395,-500.0,0.00011355,2]
[408592905,1773906632406,-500.0,0.00011355,2]
[408592906,1773906632417,-500.0,0.00011355,2]
[408592907,1773906632429,-166.66,0.00011397,2]
[408592908,1773906632439,-166.66,0.00011453,2]
[408592909,1773906632450,-500.0,0.000115,2]
[408592910,1773906632461,-4143.8693,0.000115,2]
[408592911,1773906632473,-98498.3695,0.000115,2]
[408592912,1773906632484,-2919.87,0.00011507,2]
[408592913,1773906632495,-166.66,0.00011507,2]
[408592914,1773906632506,-151.0,0.00011593,2]
[408592915,1773906632518,-151.0,0.00011593,2]
[408592916,1773906632529,-151.0,0.00011593,2]
[408592917,1773906632540,-151.0,0.00011593,2]
[408592918,1773906632552,-151.0,0.00011593,2]
[408592919,1773906632563,-151.0,0.00011593,2]
[408592920,1773906632574,-151.0,0.00011593,2]
[408592921,1773906632584,-151.0,0.00011593,2]
[408592922,1773906632594,-151.0,0.00011593,2]
[408592923,1773906632605,-151.0,0.00011593,2]
[408592924,1773906632616,-151.0,0.00011593,2]
[408592925,1773906632627,-151.0,0.00011593,2]
[408592926,1773906632637,-151.0,0.00011593,2]
[408592927,1773906632648,-151.0,0.00011593,2]
[408592928,1773906632662,-151.0,0.00011593,2]
[408592929,1773906632673,-151.0,0.00011593,2]
[408592930,1773906632684,-151.0,0.00011593,2]
[408592931,1773906632696,-151.0,0.00011593,2]
[408592932,1773906632708,-151.0,0.00011593,2]
[408592933,1773906632719,-151.0,0.00011593,2]
[408592934,1773906632729,-1000.0,0.00011599,2]
[408592935,1773906632740,-176.12,0.000116,2]
[408592936,1773906632751,-2491.17,0.000116,2]
[408592937,1773906632760,-814.86,0.000116,2]
[408592938,1773906632772,-1711.21,0.000116,2]
[408592939,1773906632781,-1460.98,0.000116,2]
[408592940,1773906632791,-1797.94,0.000116,2]
[408592941,1773906632801,-2964.52,0.000116,2]
[408592942,1773906632812,-2099.57,0.000116,2]
[408592943,1773906632822,-1205.4,0.000116,2]
[408592944,1773906632832,-1852.38,0.000116,2]
[408592945,1773906632843,-982.14,0.000116,2]
[408592946,1773906632859,-984.48,0.000116,2]
[408592947,1773906632871,-1610.71,0.000116,2]
[408592948,1773906632883,-486.72,0.000116,2]
[408592949,1773906632893,-2219.4,0.000116,2]
[408592950,1773906632902,-1349.45,0.000116,2]
[408592951,1773906632912,-2922.74,0.000116,2]
[408592952,1773906632922,-1484.62,0.000116,2]
[408592953,1773906632932,-1473.5,0.000116,2]
[408592954,1773906632942,-885.15,0.000116,2]
[408592955,1773906632951,-291.01,0.000116,2]
[408592956,1773906632961,-2788.94,0.000116,2]
[408592957,1773906632971,-1829.55,0.000116,2]
[408592958,1773906632980,-1807.07,0.000116,2]
[408592959,1773906632991,-1124.59,0.000116,2]
[408592960,1773906633004,-886.18,0.000116,2]
[408592961,1773906633016,-809.36,0.000116,2]
[408592962,1773906633026,-1539.94,0.000116,2]
[408592963,1773906633036,-2831.69,0.000116,2]
[408592964,1773906633046,-685.82,0.000116,2]
[408592965,1773906633056,-502.21245026,0.000116,2]
[408592966,1773906633067,-7833.7,0.00011653,2]
[408592967,1773906633076,-991.43,0.00011741,2]
[408592968,1773906633086,-342.78,0.00011742,2]
[408592969,1773906633095,-1852.42,0.00011762,2]
[408592970,1773906633107,-443.27,0.00011831,2]
[408592971,1773906633117,-166.66,0.00011832,2]
[408592972,1773906633127,-1000.0,0.00011834,2]
[408592973,1773906633136,-685.82,0.00011874,2]
[408592974,1773906633146,-500.0,0.00011898,2]
[408592975,1773906633156,-500.0,0.00011902,2]
[408592976,1773906633166,-1000.0,0.00011902,2]
[408592977,1773906633176,-1000.0,0.00011902,2]
[408592978,1773906633186,-250.0,0.00012016,2]
[408592979,1773906633195,-1000.0,0.00012048,2]
[408592980,1773906633206,-2351.0,0.00012096,2]
[408592981,1773906633217,-587.0,0.00012098,2]
[408592982,1773906633231,-433.0,0.00012099,2]
[408592983,1773906633242,-587.0,0.00012099,2]
[408592984,1773906633252,-685.82,0.00012148,2]
[408592985,1773906633262,-10000.0,0.00012164,2]
[408592986,1773906633272,-2000.0,0.00012184,2]
[408592987,1773906633282,-158.34,0.0001219,2]
[408592988,1773906633292,-166.66,0.0001221,2]
[408592989,1773906633302,-208.21,0.00012226,2]
[408592990,1773906633313,-233.0,0.00012294,2]
[408592991,1773906633324,-342.78,0.0001236,2]
[408592992,1773906633334,-1500.0,0.00012382,2]
[408592993,1773906633345,-685.82,0.00012422,2]
[408592994,1773906633355,-1500.0,0.0001245,2]
[408592995,1773906633365,-1500.0,0.0001245,2]
[408592996,1773906633375,-166.66,0.00012588,2]
[408592997,1773906633385,-1012.51857515,0.00012596,2]
[408592998,1773906633396,-661.4018,0.00012693,2]
[408592999,1773906633406,-685.82,0.00012696,2]
[408593000,1773906633416,-8349.95,0.00012793,2]
[408593001,1773906633427,-2500.0,0.00012849,2]
[408593002,1773906633437,-2000.0,0.0001293,2]
[408593003,1773906633447,-166.66,0.00012966,2]
[408593004,1773906633457,-685.8649653,0.0001297,2]
[408593005,1773906633468,-342.78,0.00012978,2]
[408593006,1773906633479,-2000.0,0.00012998,2]
[408593007,1773906633490,-2000.0,0.00012998,2]
[408593008,1773906633500,-12623.6113757,0.00013215,2]
[408593009,1773906633510,-2000.0,0.00013292,2]
[408593010,1773906633522,-233.0,0.00013294,2]
[408593011,1773906633532,-3292.0,0.00013306,2]
[408593012,1773906633543,-823.0,0.00013307,2]
[408593013,1773906633555,-736.0,0.00013309,2]
[408593014,1773906633565,-823.0,0.00013309,2]
[408593015,1773906633576,-501.0,0.00013333,2]
[408593016,1773906633586,-166.66,0.00013344,2]
[408593017,1773906633596,-12623.61137568,0.00013402,2]
[408593018,1773906633606,-459.789018,0.00013426,2]
[408593019,1773906633617,-293.490372,0.00013426,2]
[408593020,1773906633628,-234.077137,0.00013426,2]
[408593021,1773906633641,-2500.0,0.00013477,2]
[408593022,1773906633651,-3323.7935,0.000135,2]
[408593023,1773906633662,-153.10400719,0.000135,2]
[408593024,1773906633672,-10055.20720463,0.000135,2]
[408593025,1773906633684,-1549.71073345,0.00013546,2]
[408593026,1773906633694,-2000.0,0.00013546,2]
[408593027,1773906633705,-651.72984476,0.00013589,2]
[408593028,1773906633717,-12623.61137568,0.00013589,2]
[408593029,1773906633728,-515.70443042,0.0001359,2]
[408593030,1773906633739,-342.78,0.00013596,2]
[408593031,1773906633749,-16943.17511277,0.000136,2]
[408593032,1773906633764,-31627.87153784,0.000136,2]
[408593033,1773906633776,-42669.76693134,0.000136,2]
[408593034,1773906633791,-11446.37573449,0.000136,2]
[408593035,1773906633803,-250.0,0.000136,2]
[408593036,1773906633817,-388.019697,0.000136,2]
[408593037,1773906633836,-950.8517465,0.000136,2]
[408593038,1773906633853,-510.61,0.000136,2]
[408593041,1773906638386,-508.43954945,0.00012163,2]
[408593042,1773906638396,-306.98088231,0.00012163,2]
[408593043,1773906638407,-228.2903642,0.00012163,2]
[408593044,1773906638416,-500.0,0.00012163,2]
[408593045,1773906638426,-347.31787942,0.00012163,2]
[408593046,1773906638435,-500.0,0.00012163,2]
[408593047,1773906638444,-500.0,0.00012163,2]
[408593048,1773906638454,-308.56667881,0.00012163,2]
[408593049,1773906638464,-500.0,0.00012163,2]
[408593050,1773906638475,-19.95464581,0.00012163,2]
[408593051,1773906638499,-477.44705068,0.00012163,2]
[408593052,1773906638510,-500.0,0.00012163,2]
[408593053,1773906638521,-500.0,0.00012163,2]
[408593054,1773906638532,-500.0,0.00012163,2]
[408593055,1773906638542,-500.0,0.00012163,2]
[408593056,1773906638553,-500.0,0.00012163,2]
[408593057,1773906638562,-500.0,0.00012163,2]
[408593058,1773906638572,-500.0,0.00012163,2]
[408593059,1773906638583,-500.0,0.00012163,2]
[408593060,1773906638594,-500.0,0.00012163,2]
[408593061,1773906638603,-371672.55294932,0.000136,2]
[408593062,1773906638618,-1100.0,0.000136,2]
[408593063,1773906638631,-6934.03023416,0.000136,2]
[408593064,1773906638651,-874.22355268,0.000136,2]
[408593065,1773906638679,-2014632.5225039,0.000136,2]
[408593066,1773906638689,-400.0,0.000136,4]
[408593067,1773906638699,-514.11832696,0.00013698,2]
[408593068,1773906638709,-500.0,0.00013698,2]
[408593069,1773906638719,-500.0,0.00013698,2]
[408593070,1773906638729,-500.0,0.00013698,2]
[408593071,1773906638741,-500.0,0.00013698,2]
[408593072,1773906638750,-500.0,0.00013698,2]
[408593073,1773906638760,-505.60652917,0.00013698,2]
[408593074,1773906638771,-500.0,0.00013698,2]
[408593075,1773906638780,-308.46140861,0.00013698,2]
[408593076,1773906638790,-574.55,0.00013698,2]
[408593077,1773906638800,-500.0,0.00013698,2]
[408593078,1773906638810,-500.0,0.00013698,2]
[408593079,1773906638821,-500.0,0.00013698,2]
[408593080,1773906638832,-378.42448797,0.00013698,2]
[408593081,1773906638842,-500.0,0.00013698,2]
[408593082,1773906638859,-500.0,0.00013698,2]
[408593083,1773906638868,-500.0,0.00013698,2]
[408593084,1773906638878,-500.0,0.00013698,2]
[408593085,1773906638887,-500.0,0.00013698,2]
[408593086,1773906638898,-500.0,0.00013698,2]
[408593087,1773906638908,-500.0,0.00013698,2]
[408593088,1773906638917,-500.0,0.00013698,2]
[408593089,1773906638927,-500.0,0.00013698,2]
[408593090,1773906638936,-500.0,0.00013698,2]
[408593091,1773906638945,-525.53489996,0.00013698,2]
[408593092,1773906638954,-500.0,0.00013698,2]
[408593093,1773906638963,-500.0,0.00013698,2]
[408593094,1773906638973,-500.0,0.00013698,2]
[408593095,1773906638982,-500.0,0.00013698,2]
[408593096,1773906638991,-500.0,0.00013698,2]
[408593097,1773906639000,-500.0,0.00013698,2]
[408593098,1773906639009,-508.84021049,0.00013698,2]
[408593099,1773906639018,-500.0,0.00013698,2]
[408593100,1773906639027,-500.0,0.00013698,2]
[408593101,1773906639036,-526.51350935,0.00013698,2]
[408593102,1773906639046,-500.0,0.00013698,2]
[408593103,1773906639055,-500.0,0.00013698,2]
[408593104,1773906639064,-500.0,0.00013698,2]
[408593105,1773906639073,-500.0,0.00013698,2]
[408593106,1773906639082,-500.0,0.00013698,2]
[408593107,1773906639091,-500.0,0.00013698,2]
[408593108,1773906639101,-578.90120108,0.00013698,2]
[408593109,1773906639110,-500.0,0.00013698,2]
[408593110,1773906639120,-500.0,0.00013698,2]
[408593111,1773906639130,-500.0,0.00013698,2]
[408593112,1773906639139,-262.70392086,0.00013698,2]
[408593113,1773906639150,-500.0,0.00013698,2]
[408593114,1773906639159,-500.0,0.00013698,2]
[408593115,1773906639169,-159.98953286,0.00013698,2]
[408593116,1773906639180,-249.23840076,0.00013698,2]
[408593117,1773906639190,-150.0,0.00013699,2]
[408593118,1773906639200,-4213.7,0.00013699,2]
[408593119,1773906639209,-3363.49,0.00013699,2]
[408593120,1773906639219,-715.67,0.00013699,2]
[408593121,1773906639227,-301.7381184,0.00013699,2]
[408593122,1773906639237,-500.0,0.00013699,2]
[408593123,1773906639246,-500.0,0.00013699,2]
[408593124,1773906639256,-500.0,0.00013699,2]
[408593125,1773906639265,-500.0,0.00013699,2]
[408593126,1773906639274,-500.0,0.00013699,2]
[408593127,1773906639284,-500.0,0.00013699,2]
[408593128,1773906639293,-500.0,0.00013699,2]
[408593129,1773906639303,-500.0,0.00013699,2]
[408593130,1773906639313,-500.0,0.00013699,2]
[408593131,1773906639323,-500.0,0.00013699,2]
[408593132,1773906639334,-500.0,0.00013699,2]
[408593133,1773906639343,-500.0,0.00013699,2]
[408593134,1773906639353,-500.0,0.00013699,2]
[408593135,1773906639363,-500.0,0.00013699,2]
[408593136,1773906639372,-226.28741406,0.00013699,2]
[408593137,1773906639381,-500.0,0.00013699,2]
[408593138,1773906639391,-500.0,0.00013699,2]
[408593139,1773906639400,-500.0,0.00013699,2]
[408593140,1773906639409,-500.0,0.00013699,2]
[408593141,1773906639419,-500.0,0.00013699,2]
[408593142,1773906639429,-500.0,0.00013699,2]
[408593143,1773906639439,-500.0,0.00013699,2]
[408593144,1773906639448,-500.0,0.00013699,2]
[408593145,1773906639458,-500.0,0.00013699,2]
[408593146,1773906639467,-500.0,0.00013699,2]
[408593147,1773906639477,-500.0,0.00013699,2]
[408593148,1773906639488,-500.0,0.00013699,2]
[408593149,1773906639503,-207.63752376,0.00013699,2]
[408593150,1773906639513,-500.0,0.00013699,2]
[408593151,1773906639522,-500.0,0.00013699,2]
[408593152,1773906639532,-500.0,0.00013699,2]
[408593153,1773906639542,-500.0,0.00013699,2]
[408593154,1773906639551,-500.0,0.00013699,2]
[408593155,1773906639561,-500.64450222,0.00013699,2]
[408593156,1773906639571,-500.0,0.00013699,2]
[408593157,1773906639581,-500.0,0.00013699,2]
[408593158,1773906639591,-500.0,0.00013699,2]
[408593159,1773906639600,-517.58879621,0.00013699,2]
[408593160,1773906639610,-606.98804759,0.00013699,2]
[408593161,1773906639622,-500.0,0.00013699,2]
[408593162,1773906639631,-500.0,0.00013699,2]
[408593163,1773906639642,-162.36552885,0.00013699,2]
[408593164,1773906639652,-500.0,0.00013699,2]
[408593165,1773906639663,-500.0,0.00013699,2]
[408593166,1773906639674,-500.0,0.00013699,2]
[408593167,1773906639688,-500.0,0.00013699,2]
[408593168,1773906639699,-500.0,0.00013699,2]
[408593169,1773906639711,-186.16,0.00013699,2]
[408593170,1773906639722,-507.27,0.000137,2]
[408593171,1773906639734,-769.74,0.000137,2]
[408593172,1773906639744,-168.0,0.000137,2]
[408593173,1773906639754,-329.91,0.000137,2]
[408593174,1773906639765,-477111.34,0.000137,2]
[408593175,1773906639774,-455.06,0.000137,2]
[408593176,1773906639783,-900.0,0.000137,5]
[408593177,1773906639792,-3652.96,0.000137,2]
[408593178,1773906639802,-3652.96,0.000137,2]
[408593179,1773906639811,-3652.96,0.000137,2]
[408593181,1773906639821,-3652.96,0.000137,2]
[408593182,1773906639830,-3652.96,0.000137,2]
[408593183,1773906639840,-12623.61137568,0.00013777,2]
[408593184,1773906639853,-1400.0,0.000138,5]
[408593185,1773906639867,-1900.0,0.000139,5]
[408593186,1773906639879,-160.99,0.00013914,2]
[408593188,1773906639891,-12623.61137568,0.00013964,2]
[408593189,1773906639901,-500.0,0.00014025,2]
[408593190,1773906639912,-12623.61137568,0.00014151,2]
[408593191,1773906639922,-342.78,0.00014214,2]
[408593192,1773906639934,-515.70443042,0.00014237,2]
[408593193,1773906639944,-1000.0,0.00014247,2]
[408593194,1773906639954,-1000.0,0.00014247,2]
[408593195,1773906639964,-1000.0,0.00014247,2]
[408593196,1773906639973,-1000.0,0.00014247,2]
[408593197,1773906639984,-720.11454399,0.00014247,2]
[408593198,1773906639993,-1000.0,0.00014247,2]
[408593199,1773906640003,-1000.0,0.00014247,2]
[408593200,1773906640013,-1000.0,0.00014247,2]
[408593201,1773906640024,-1000.0,0.00014247,2]
[408593202,1773906640034,-1000.0,0.00014247,2]
[408593203,1773906640044,-505.49650087,0.00014247,2]
[408593204,1773906640054,-1000.0,0.00014247,2]
[408593205,1773906640063,-625.21955224,0.00014247,2]
[408593206,1773906640073,-1000.0,0.00014247,2]
[408593207,1773906640082,-1000.0,0.00014247,2]
[408593208,1773906640092,-1000.0,0.00014247,2]
[408593209,1773906640102,-1000.0,0.00014247,2]
[408593210,1773906640111,-857.17487336,0.00014247,2]
[408593211,1773906640121,-282.85176182,0.00014247,2]
[408593212,1773906640130,-1000.0,0.00014247,2]
[408593213,1773906640139,-414.97243229,0.00014247,2]
[408593214,1773906640149,-1000.0,0.00014247,2]
[408593215,1773906640159,-1000.0,0.00014247,2]
[408593216,1773906640169,-1000.0,0.00014247,2]
[408593217,1773906640180,-1000.0,0.00014247,2]
[408593218,1773906640190,-1000.0,0.00014247,2]
[408593219,1773906640199,-1000.0,0.00014247,2]
[408593220,1773906640211,-1000.0,0.00014247,2]
[408593221,1773906640222,-1000.0,0.00014247,2]
[408593222,1773906640237,-1000.0,0.00014247,2]
[408593223,1773906640247,-1000.0,0.00014247,2]
[408593224,1773906640257,-1000.0,0.00014247,2]
[408593225,1773906640267,-1000.0,0.00014247,2]
[408593226,1773906640278,-389.68962136,0.00014247,2]
[408593227,1773906640287,-1000.0,0.00014247,2]
[408593228,1773906640297,-1000.0,0.00014247,2]
[408593229,1773906640307,-1000.0,0.00014247,2]
[408593230,1773906640316,-1000.0,0.00014247,2]
[408593231,1773906640326,-1000.0,0.00014247,2]
[408593232,1773906640336,-233.0,0.00014294,2]
[408593233,1773906640346,-166.1762201,0.000143,2]
[408593234,1773906640356,-2647.43129943,0.00014338,2]
[408593235,1773906640561,-760.16818,0.00014338,2]
[408593236,1773906640573,-596.298,0.00014338,2]
[408593254,1773906645730,-1383.06069021,0.00014338,2]
[408593255,1773906645741,-1386.53719003,0.00014338,2]
[408593256,1773906645767,-686.11417984,0.00014338,2]
[408593257,1773906645934,-911.19309618,0.00014338,2]
[408593263,1773906671332,500.0,8.861e-05,2]
[408593264,1773906726210,10000.01,9.9e-05,2]
[408593265,1773906767843,500.0,9.647e-05,2]
[408593266,1773906788393,9500.01,9.9e-05,2]
[408593267,1773906788419,10000.01,9.9e-05,2]
[408593268,1773906788445,10000.01,9.9e-05,2]
[408593269,1773906788471,10000.01,9.9e-05,2]
[408593270,1773906788496,10000.01,9.9e-05,2]
[408593271,1773906788531,10000.01,9.9e-05,2]
[408593272,1773906788563,10000.01,9.9e-05,2]
[408593273,1773906788586,10000.01,9.9e-05,2]
[408593275,1773906841730,-300.0,9.899e-05,2]
[408593276,1773906845034,-300.0,9.899e-05,2]
[408593277,1773906845063,-150.0,9.899e-05,2]
[408593278,1773906845155,-6201.8425399,9.9e-05,2]
[408593279,1773907209356,217.71,8.861e-05,2]
[408593288,1773907290927,3998.979,9.702e-05,2]
[408593289,1773907291016,152.255,9.702e-05,2]
[408593290,1773907310974,-1632.8649,9.8e-05,2]
[408593291,1773907311057,-2365.3362,9.8e-05,2]
[408593292,1773907311161,-10000.01,9.8e-05,2]
[408593293,1773907311298,-10000.01,9.8e-05,2]
[408593294,1773907311466,-10000.01,9.8e-05,2]
[408593295,1773907311584,-10000.01,9.8e-05,2]
[408593296,1773907313862,-10000.01,9.8e-05,2]
[408593297,1773907316927,-2849.0503,9.8e-05,2]
[408593298,1773907316959,-4301.9094,9.8e-05,2]
[408593299,1773907317055,-2500.0,9.8e-05,2]
[408593300,1773907369193,5000.01,9.8e-05,2]
[408593301,1773907369220,1761.4728,9.8e-05,2]
[408593302,1773907415150,500.0,8.861e-05,2]
[408593303,1773907465870,7738.5372,9.8e-05,2]
[408593304,1773907465896,3363.8731,9.8e-05,2]
[408593305,1773907471470,2500.0,9.8e-05,2]
[408593307,1773907525144,1500.0,9.561e-05,2]
[408593406,1773907615155,150.0,9.8e-05,2]
[408593414,1773907626808,500.0,9.7e-05,3]
[408593415,1773907628920,1000.0,9.8e-05,3]
[408593416,1773907633671,986.1369,9.8e-05,2]
[408593417,1773907672108,3362.8592,9.751e-05,2]
[408593418,1773907741115,541.16,9.329e-05,2]
[408593419,1773907759352,150.0,8.861e-05,2]
[408593421,1773907832157,-265.0,9.788e-05,2]
[408593422,1773907832219,-35.0,9.788e-05,2]
[408593424,1773907832228,-300.0,9.788e-05,2]
[408593426,1773907832238,-1200.0,9.788e-05,2]
[408593428,1773907832247,-230.0,9.788e-05,2]
[408593430,1773907832257,-346.52657623,9.788e-05,2]
[408593431,1773907832267,-500.0,9.788e-05,2]
[408593433,1773907832276,-500.0,9.788e-05,2]
[408593434,1773907832286,-180.80836944,9.788e-05,2]
[408593436,1773907832295,-342796.55501752,9.789e-05,2]
[408593450,1773907838243,-295.353,9.788e-05,2]
[408593451,1773907838253,-500.0,9.788e-05,2]
[408593452,1773907838263,-500.0,9.788e-05,2]
[408593453,1773907838273,-500.0,9.788e-05,2]
[408593454,1773907838284,-500.0,9.788e-05,2]
[408593455,1773907838295,-500.0,9.788e-05,2]
[408593456,1773907838305,-500.0,9.788e-05,2]
[408593457,1773907838315,-500.0,9.788e-05,2]
[408593458,1773907838324,-500.0,9.788e-05,2]
[408593459,1773907838334,-500.0,9.788e-05,2]
[408593460,1773907838344,-143.59004721,9.788e-05,2]
[408593461,1773907838359,-356.40995279,9.788e-05,2]
[408593462,1773907838369,-391.85898288,9.788e-05,2]
[408593463,1773907838399,-108.14101712,9.788e-05,2]
[408593464,1773907838409,-500.0,9.788e-05,2]
[408593465,1773907838418,-500.0,9.788e-05,2]
[408593466,1773907838428,-500.0,9.788e-05,2]
[408593467,1773907838437,-500.0,9.788e-05,2]
[408593468,1773907838447,-500.0,9.788e-05,2]
[408593469,1773907838456,-500.0,9.788e-05,2]
[408593470,1773907838466,-500.0,9.788e-05,2]
[408593471,1773907838476,-500.0,9.788e-05,2]
[408593472,1773907838489,-500.0,9.788e-05,2]
[408593473,1773907838499,-500.0,9.788e-05,2]
[408593474,1773907838509,-500.0,9.788e-05,2]
[408593475,1773907838518,-500.0,9.788e-05,2]
[408593476,1773907838529,-500.0,9.788e-05,2]
[408593477,1773907838538,-500.0,9.788e-05,2]
[408593478,1773907838548,-500.0,9.788e-05,2]
[408593479,1773907838559,-500.0,9.788e-05,2]
[408593480,1773907838568,-500.0,9.788e-05,2]
[408593481,1773907838578,-368.69039529,9.788e-05,2]
[408593482,1773907838588,-500.0,9.788e-05,2]
[408593483,1773907838597,-2157203.44498248,9.789e-05,2]
[408593484,1773907838607,-1513.8631,9.8e-05,2]
[408593485,1773907838617,-5000.0,9.812e-05,2]
[408593487,1773907838626,-250.0,9.823e-05,2]
[408593489,1773907838636,-5000.0,9.846e-05,2]
[408593491,1773907838647,-367.96489401,9.85e-05,2]
[408593493,1773907838656,-300.0,9.861e-05,2]
[408593495,1773907838666,-5000.0,9.862e-05,2]
[408593497,1773907838675,-330.27589959,9.872e-05,2]
[408593499,1773907838684,-150.0,9.872e-05,2]
[408593501,1773907838694,-500.0,9.873e-05,2]
[408593503,1773907838703,-300.07852867,9.873e-05,2]
[408593505,1773907838712,-503.01696728,9.873e-05,2]
[408593507,1773907838721,-500.0,9.873e-05,2]
[408593509,1773907838732,-500.31068947,9.873e-05,2]
[408593511,1773907838741,-500.0,9.873e-05,2]
[408593513,1773907838751,-500.0,9.873e-05,2]
[408593515,1773907838760,-500.0,9.873e-05,2]
[408593517,1773907838769,-500.0,9.873e-05,2]